[Event "November 21 Late 2023"]
[Site "https://www.chess.com"]
[Date "2023.11.21"]
[Round "3"]
[White "Grischuk, Alexander"]
[Black "Trost, Edvin"]
[Result "1-0"]
[Board "10"]
[TimeControl "180+1"]
[WhiteFideId "4126025"]
[BlackFideId "1729519"]
[WhiteElo "2699"]
[BlackElo "2385"]
[WhiteTeam "RUS"]
[BlackTeam "SWE"]
[WhiteClock "0:00:44"]
[BlackClock "0:00:00"]

1. d4 {[%clk 0:03:00]}  Nf6 {[%clk 0:02:57]} 2. c4 {[%clk 0:03:01]}  e6 {[%clk 0:02:57]} 3. Bg5 {[%clk 0:03:00]}  d5 {[%clk 0:02:51]} 4. e3 {[%clk 0:03:00]}  h6 {[%clk 0:02:50]} 5. Bh4 {[%clk 0:02:59]}  Bb4+ {[%clk 0:02:45]} 6. Nc3 {[%clk 0:02:58]}  O-O {[%clk 0:02:39]} 7. cxd5 {[%clk 0:02:48]}  exd5 {[%clk 0:02:37]} 8. Bd3 {[%clk 0:02:48]}  Be6 {[%clk 0:02:34]} 9. Ne2 {[%clk 0:02:47]}  c5 {[%clk 0:02:34]} 10. a3 {[%clk 0:02:42]}  Bxc3+ {[%clk 0:02:30]} 11. bxc3 {[%clk 0:02:43]}  Nbd7 {[%clk 0:02:28]} 12. O-O {[%clk 0:02:41]}  Qa5 {[%clk 0:02:25]} 13. f3 {[%clk 0:02:40]}  Rfe8 {[%clk 0:02:22]} 14. Kh1 {[%clk 0:02:36]}  Rac8 {[%clk 0:02:10]} 15. a4 {[%clk 0:02:35]}  a6 {[%clk 0:02:02]} 16. Rb1 {[%clk 0:02:28]}  b6 {[%clk 0:02:01]} 17. h3 {[%clk 0:02:25]}  Nh7 {[%clk 0:01:45]} 18. Be1 {[%clk 0:02:10]}  c4 {[%clk 0:01:25]} 19. Bc2 {[%clk 0:02:10]}  f5 {[%clk 0:01:17]} 20. Nf4 {[%clk 0:02:10]}  Rcd8 {[%clk 0:00:50]} 21. Qd2 {[%clk 0:02:01]}  Bf7 {[%clk 0:00:39]} 22. Bxf5 {[%clk 0:02:01]}  Qxa4 {[%clk 0:00:39]} 23. Bxd7 {[%clk 0:01:56]}  Qxd7 {[%clk 0:00:37]} 24. Rxb6 {[%clk 0:01:56]}  a5 {[%clk 0:00:37]} 25. Bf2 {[%clk 0:01:49]}  a4 {[%clk 0:00:38]} 26. Ra1 {[%clk 0:01:48]}  Rb8 {[%clk 0:00:38]} 27. Qb2 {[%clk 0:01:39]}  Qc7 {[%clk 0:00:34]} 28. Rb4 {[%clk 0:01:34]}  Rxb4 {[%clk 0:00:26]} 29. Qxb4 {[%clk 0:01:35]}  Ra8 {[%clk 0:00:23]} 30. Rxa4 {[%clk 0:01:25]}  Rb8 {[%clk 0:00:23]} 31. Qa3 {[%clk 0:01:25]}  Rb1+ {[%clk 0:00:24]} 32. Kh2 {[%clk 0:01:23]}  g5 {[%clk 0:00:21]} 33. Ra7 {[%clk 0:01:23]}  Rb7 {[%clk 0:00:12]} 34. Rxb7 {[%clk 0:01:22]}  Qxb7 {[%clk 0:00:13]} 35. Ne2 {[%clk 0:01:22]}  Qb1 {[%clk 0:00:12]} 36. Bg3 {[%clk 0:01:12]}  Qc2 {[%clk 0:00:12]} 37. Qa8+ {[%clk 0:01:08]}  Kg7 {[%clk 0:00:07]} 38. Be5+ {[%clk 0:01:08]}  Nf6 {[%clk 0:00:01]} 39. Qc6 {[%clk 0:01:05]}  Qxe2 {[%clk 0:00:01]} 40. Qxf6+ {[%clk 0:01:05]}  Kf8 {[%clk 0:00:02]} 41. Qxh6+ {[%clk 0:01:02]}  Ke8 {[%clk 0:00:03]} 42. Qxg5 {[%clk 0:01:00]}  Qd2 {[%clk 0:00:02]} 43. Bd6 {[%clk 0:00:58]}  Kd7 {[%clk 0:00:02]} 44. Qe7+ {[%clk 0:00:58]}  Kc6 {[%clk 0:00:03]} 45. Qc7+ {[%clk 0:00:58]}  Kb5 {[%clk 0:00:03]} 46. Qxf7 {[%clk 0:00:59]}  Ka4 {[%clk 0:00:03]} 47. Qxd5 {[%clk 0:00:47]}  Kb3 {[%clk 0:00:03]} 48. Bb4 {[%clk 0:00:46]}  Qc2 {[%clk 0:00:02]} 49. Qe4 {[%clk 0:00:44]}  Qd2 {[%clk 0:00:01]} 50. d5 {[%clk 0:00:44]}  Ka2 {[%clk 0:00:01]} 51. Qd4 {[%clk 0:00:44]}  Qc2 {[%clk 0:00:01]} 52. d6 {[%clk 0:00:44]}  Kb1 {[%clk 0:00:00]} 53. d7 {[%clk 0:00:44]} 1-0

[Event "November 21 Late 2023"]
[Site "https://www.chess.com"]
[Date "2023.11.21"]
[Round "3"]
[White "Djokic, Mihailo"]
[Black "Xiong, Jeffery"]
[Result "0-1"]
[Board "11"]
[TimeControl "180+1"]
[WhiteFideId "976440"]
[BlackFideId "2047640"]
[WhiteElo "2265"]
[BlackElo "2726"]
[WhiteTeam "SRB"]
[BlackTeam "USA"]
[WhiteClock "0:00:27"]
[BlackClock "0:00:45"]

1. e4 {[%clk 0:03:00]}  c5 {[%clk 0:02:59]} 2. Nf3 {[%clk 0:03:01]}  d6 {[%clk 0:02:59]} 3. d4 {[%clk 0:03:01]}  cxd4 {[%clk 0:03:00]} 4. Nxd4 {[%clk 0:03:02]}  Nf6 {[%clk 0:03:01]} 5. Nc3 {[%clk 0:03:02]}  a6 {[%clk 0:03:02]} 6. Be2 {[%clk 0:03:02]}  e5 {[%clk 0:03:02]} 7. Nf3 {[%clk 0:03:03]}  Be7 {[%clk 0:02:55]} 8. Bg5 {[%clk 0:03:03]}  Nbd7 {[%clk 0:02:55]} 9. Nd2 {[%clk 0:02:41]}  Nc5 {[%clk 0:02:46]} 10. Bxf6 {[%clk 0:02:39]}  Bxf6 {[%clk 0:02:47]} 11. Nc4 {[%clk 0:02:33]}  Be7 {[%clk 0:02:44]} 12. Nd5 {[%clk 0:02:32]}  Nxe4 {[%clk 0:02:32]} 13. Bf3 {[%clk 0:02:29]}  Nc5 {[%clk 0:02:26]} 14. b4 {[%clk 0:02:25]}  Ne6 {[%clk 0:02:17]} 15. Nxe7 {[%clk 0:02:22]}  Kxe7 {[%clk 0:02:17]} 16. O-O {[%clk 0:02:19]}  Rb8 {[%clk 0:02:08]} 17. Re1 {[%clk 0:02:16]}  b5 {[%clk 0:02:00]} 18. Ne3 {[%clk 0:02:13]}  Kf8 {[%clk 0:01:52]} 19. Nf5 {[%clk 0:02:04]}  Rb6 {[%clk 0:01:52]} 20. Qd2 {[%clk 0:01:55]}  Ng5 {[%clk 0:01:49]} 21. Bg4 {[%clk 0:01:40]}  h5 {[%clk 0:01:48]} 22. Rxe5 {[%clk 0:01:24]}  hxg4 {[%clk 0:01:44]} 23. Rae1 {[%clk 0:01:20]}  Ne6 {[%clk 0:00:57]} 24. Rd5 {[%clk 0:01:11]}  Rh5 {[%clk 0:00:50]} 25. Rxd6 {[%clk 0:00:56]}  Rxd6 {[%clk 0:00:49]} 26. Nxd6 {[%clk 0:00:48]}  Bb7 {[%clk 0:00:48]} 27. Rd1 {[%clk 0:00:27]}  Rd5 {[%clk 0:00:45]} 0-1

[Event "November 21 Late 2023"]
[Site "https://www.chess.com"]
[Date "2023.11.21"]
[Round "3"]
[White "Deac, Bogdan-Daniel"]
[Black "Annaberdiyev, Meylis"]
[Result "1/2-1/2"]
[Board "12"]
[TimeControl "180+1"]
[WhiteFideId "1226380"]
[BlackFideId "14000563"]
[WhiteElo "2641"]
[BlackElo "2405"]
[WhiteTeam "ROU"]
[BlackTeam "TKM"]
[WhiteClock "0:00:19"]
[BlackClock "0:00:17"]

1. d4 {[%clk 0:03:00]}  Nf6 {[%clk 0:02:57]} 2. c4 {[%clk 0:03:01]}  e6 {[%clk 0:02:57]} 3. Nf3 {[%clk 0:03:02]}  d5 {[%clk 0:02:57]} 4. g3 {[%clk 0:03:02]}  Bb4+ {[%clk 0:02:56]} 5. Nc3 {[%clk 0:03:02]}  O-O {[%clk 0:02:47]} 6. Bg2 {[%clk 0:03:02]}  dxc4 {[%clk 0:02:44]} 7. O-O {[%clk 0:03:03]}  Nc6 {[%clk 0:02:27]} 8. Qa4 {[%clk 0:03:03]}  Rb8 {[%clk 0:02:17]} 9. Ne5 {[%clk 0:02:53]}  Qxd4 {[%clk 0:01:46]} 10. Nxc6 {[%clk 0:02:52]}  bxc6 {[%clk 0:01:46]} 11. Be3 {[%clk 0:02:52]}  Qe5 {[%clk 0:01:45]} 12. Bxa7 {[%clk 0:02:27]}  Bxc3 {[%clk 0:01:40]} 13. bxc3 {[%clk 0:02:25]}  Ra8 {[%clk 0:01:39]} 14. Bxc6 {[%clk 0:02:19]}  Bd7 {[%clk 0:01:33]} 15. Bxd7 {[%clk 0:02:06]}  Nxd7 {[%clk 0:01:34]} 16. Qxd7 {[%clk 0:02:06]}  Rxa7 {[%clk 0:01:34]} 17. Qd4 {[%clk 0:01:59]}  Qxd4 {[%clk 0:01:22]} 18. cxd4 {[%clk 0:01:59]}  Rfa8 {[%clk 0:01:22]} 19. Rfb1 {[%clk 0:02:00]}  g6 {[%clk 0:01:16]} 20. Rb2 {[%clk 0:01:59]}  Ra4 {[%clk 0:00:56]} 21. e3 {[%clk 0:01:53]}  c3 {[%clk 0:00:54]} 22. Rc2 {[%clk 0:01:52]}  Rc4 {[%clk 0:00:55]} 23. a3 {[%clk 0:01:12]}  c5 {[%clk 0:00:54]} 24. dxc5 {[%clk 0:01:12]}  Rxc5 {[%clk 0:00:54]} 25. Kf1 {[%clk 0:01:12]}  Kf8 {[%clk 0:00:53]} 26. Ke2 {[%clk 0:01:10]}  Ke7 {[%clk 0:00:54]} 27. Kd1 {[%clk 0:01:05]}  Rd8+ {[%clk 0:00:42]} 28. Ke1 {[%clk 0:01:00]}  Ra8 {[%clk 0:00:42]} 29. a4 {[%clk 0:01:00]}  Rc4 {[%clk 0:00:40]} 30. a5 {[%clk 0:00:58]}  Ra6 {[%clk 0:00:40]} 31. Kd1 {[%clk 0:00:54]}  Rc5 {[%clk 0:00:33]} 32. Rca2 {[%clk 0:00:53]}  c2+ {[%clk 0:00:28]} 33. Kc1 {[%clk 0:00:49]}  h5 {[%clk 0:00:27]} 34. h4 {[%clk 0:00:44]}  Kf6 {[%clk 0:00:28]} 35. Ra4 {[%clk 0:00:37]}  e5 {[%clk 0:00:22]} 36. R1a2 {[%clk 0:00:34]}  Kf5 {[%clk 0:00:20]} 37. f3 {[%clk 0:00:23]}  f6 {[%clk 0:00:19]} 38. e4+ {[%clk 0:00:20]}  Ke6 {[%clk 0:00:19]} 39. R4a3 {[%clk 0:00:20]}  g5 {[%clk 0:00:19]} 40. Ra4 {[%clk 0:00:19]}  gxh4 {[%clk 0:00:18]} 41. gxh4 {[%clk 0:00:20]}  f5 {[%clk 0:00:18]} 42. R4a3 {[%clk 0:00:18]}  fxe4 {[%clk 0:00:18]} 43. fxe4 {[%clk 0:00:19]}  Kf6 {[%clk 0:00:16]} 44. Ra4 {[%clk 0:00:19]}  Ke6 {[%clk 0:00:17]} 45. R4a3 {[%clk 0:00:19]}  Kf6 {[%clk 0:00:17]} 46. Ra1 {[%clk 0:00:19]}  Ke6 {[%clk 0:00:17]} 47. R1a2 {[%clk 0:00:19]} 1/2-1/2

[Event "November 21 Late 2023"]
[Site "https://www.chess.com"]
[Date "2023.11.21"]
[Round "3"]
[White "Lizak, Peter"]
[Black "Demchenko, Anton"]
[Result "1-0"]
[Board "14"]
[TimeControl "180+1"]
[WhiteFideId "731595"]
[BlackFideId "4160258"]
[WhiteElo "2420"]
[BlackElo "2545"]
[WhiteTeam "HUN"]
[BlackTeam "SLO"]
[WhiteClock "0:00:30"]
[BlackClock "0:00:02"]

1. d4 {[%clk 0:03:00]}  Nf6 {[%clk 0:02:59]} 2. Nc3 {[%clk 0:03:00]}  d6 {[%clk 0:03:00]} 3. e4 {[%clk 0:03:00]}  g6 {[%clk 0:03:00]} 4. Nf3 {[%clk 0:02:59]}  Bg7 {[%clk 0:03:00]} 5. Bc4 {[%clk 0:03:00]}  O-O {[%clk 0:02:59]} 6. O-O {[%clk 0:03:01]}  Bg4 {[%clk 0:02:53]} 7. h3 {[%clk 0:02:59]}  Bxf3 {[%clk 0:02:53]} 8. Qxf3 {[%clk 0:03:00]}  Nc6 {[%clk 0:02:54]} 9. Rd1 {[%clk 0:03:00]}  e5 {[%clk 0:02:53]} 10. dxe5 {[%clk 0:03:00]}  Nxe5 {[%clk 0:02:54]} 11. Qe2 {[%clk 0:03:00]}  Nxc4 {[%clk 0:02:43]} 12. Qxc4 {[%clk 0:03:01]}  Re8 {[%clk 0:02:36]} 13. Bg5 {[%clk 0:02:59]}  h6 {[%clk 0:01:56]} 14. Bxf6 {[%clk 0:02:59]}  Bxf6 {[%clk 0:01:57]} 15. Nd5 {[%clk 0:02:59]}  c6 {[%clk 0:01:42]} 16. Nxf6+ {[%clk 0:02:58]}  Qxf6 {[%clk 0:01:43]} 17. Qd4 {[%clk 0:02:31]}  Qxd4 {[%clk 0:01:27]} 18. Rxd4 {[%clk 0:02:30]}  Rad8 {[%clk 0:01:22]} 19. Rad1 {[%clk 0:02:29]}  Re6 {[%clk 0:01:20]} 20. f3 {[%clk 0:02:27]}  Kf8 {[%clk 0:01:19]} 21. Kf2 {[%clk 0:02:24]}  Ke7 {[%clk 0:01:19]} 22. c4 {[%clk 0:02:24]}  Re5 {[%clk 0:01:14]} 23. f4 {[%clk 0:02:12]}  Ra5 {[%clk 0:01:14]} 24. a3 {[%clk 0:02:07]}  f6 {[%clk 0:01:13]} 25. R1d3 {[%clk 0:01:59]}  g5 {[%clk 0:01:06]} 26. b4 {[%clk 0:01:46]}  Ra4 {[%clk 0:01:04]} 27. e5 {[%clk 0:01:34]}  fxe5 {[%clk 0:00:49]} 28. fxe5 {[%clk 0:01:29]}  d5 {[%clk 0:00:48]} 29. cxd5 {[%clk 0:01:25]}  Rxd5 {[%clk 0:00:49]} 30. Rxd5 {[%clk 0:01:20]}  cxd5 {[%clk 0:00:50]} 31. Rxd5 {[%clk 0:01:21]}  Rxa3 {[%clk 0:00:49]} 32. Rc5 {[%clk 0:01:18]}  Ke6 {[%clk 0:00:37]} 33. Rc7 {[%clk 0:01:12]}  b6 {[%clk 0:00:22]} 34. Rc6+ {[%clk 0:01:07]}  Kxe5 {[%clk 0:00:22]} 35. Rxh6 {[%clk 0:01:07]}  Ra4 {[%clk 0:00:20]} 36. Rh7 {[%clk 0:01:06]}  a6 {[%clk 0:00:16]} 37. Ra7 {[%clk 0:01:05]}  Kf4 {[%clk 0:00:13]} 38. g3+ {[%clk 0:01:04]}  Ke4 {[%clk 0:00:13]} 39. h4 {[%clk 0:01:04]}  Ra2+ {[%clk 0:00:11]} 40. Kg1 {[%clk 0:00:59]}  g4 {[%clk 0:00:12]} 41. Rf7 {[%clk 0:00:58]}  a5 {[%clk 0:00:11]} 42. bxa5 {[%clk 0:00:57]}  bxa5 {[%clk 0:00:12]} 43. h5 {[%clk 0:00:53]}  Rb2 {[%clk 0:00:04]} 44. Rf4+ {[%clk 0:00:53]}  Ke3 {[%clk 0:00:03]} 45. Rxg4 {[%clk 0:00:50]}  Rb8 {[%clk 0:00:04]} 46. Kg2 {[%clk 0:00:46]}  Ra8 {[%clk 0:00:03]} 47. Ra4 {[%clk 0:00:45]}  Kd3 {[%clk 0:00:03]} 48. g4 {[%clk 0:00:45]}  Kc3 {[%clk 0:00:04]} 49. Kg3 {[%clk 0:00:44]}  Kb3 {[%clk 0:00:04]} 50. Ra1 {[%clk 0:00:44]}  a4 {[%clk 0:00:05]} 51. g5 {[%clk 0:00:44]}  Kb2 {[%clk 0:00:04]} 52. Rf1 {[%clk 0:00:43]}  a3 {[%clk 0:00:05]} 53. g6 {[%clk 0:00:42]}  Rc8 {[%clk 0:00:01]} 54. g7 {[%clk 0:00:38]}  a2 {[%clk 0:00:02]} 55. Rf2+ {[%clk 0:00:37]}  Rc2 {[%clk 0:00:02]} 56. g8=Q {[%clk 0:00:33]}  Rxf2 {[%clk 0:00:01]} 57. Qg7+ {[%clk 0:00:31]}  Kb1 {[%clk 0:00:01]} 58. Kxf2 {[%clk 0:00:30]}  a1=Q {[%clk 0:00:02]} 1-0

[Event "November 21 Late 2023"]
[Site "https://www.chess.com"]
[Date "2023.11.21"]
[Round "3"]
[White "Bjelobrk, Igor"]
[Black "Khismatullin, Denis"]
[Result "1/2-1/2"]
[Board "18"]
[TimeControl "180+1"]
[WhiteFideId "4300726"]
[BlackFideId "4142578"]
[WhiteElo "2319"]
[BlackElo "2552"]
[WhiteTeam "AUS"]
[BlackTeam "RUS"]
[WhiteClock "0:00:13"]
[BlackClock "0:00:08"]

1. d4 {[%clk 0:03:00]}  Nf6 {[%clk 0:02:58]} 2. c4 {[%clk 0:03:01]}  e6 {[%clk 0:02:58]} 3. g3 {[%clk 0:03:00]}  Bb4+ {[%clk 0:02:56]} 4. Bd2 {[%clk 0:03:00]}  Be7 {[%clk 0:02:55]} 5. Bg2 {[%clk 0:02:55]}  d5 {[%clk 0:02:55]} 6. Nf3 {[%clk 0:02:54]}  O-O {[%clk 0:02:55]} 7. O-O {[%clk 0:02:53]}  c6 {[%clk 0:02:55]} 8. Qc2 {[%clk 0:02:49]}  Nbd7 {[%clk 0:02:55]} 9. Rd1 {[%clk 0:02:48]}  a5 {[%clk 0:02:54]} 10. Bg5 {[%clk 0:02:42]}  h6 {[%clk 0:02:49]} 11. Bxf6 {[%clk 0:02:42]}  Nxf6 {[%clk 0:02:50]} 12. Nbd2 {[%clk 0:02:41]}  b6 {[%clk 0:02:37]} 13. e4 {[%clk 0:02:40]}  Bb7 {[%clk 0:02:36]} 14. Rac1 {[%clk 0:02:39]}  Rc8 {[%clk 0:02:35]} 15. e5 {[%clk 0:02:36]}  Nd7 {[%clk 0:02:34]} 16. cxd5 {[%clk 0:02:29]}  cxd5 {[%clk 0:02:33]} 17. Qd3 {[%clk 0:02:30]}  Nb8 {[%clk 0:02:31]} 18. h4 {[%clk 0:02:18]}  Qd7 {[%clk 0:02:27]} 19. Qb3 {[%clk 0:02:12]}  b5 {[%clk 0:02:19]} 20. Bf1 {[%clk 0:02:06]}  b4 {[%clk 0:02:18]} 21. a4 {[%clk 0:02:00]}  Rxc1 {[%clk 0:02:14]} 22. Rxc1 {[%clk 0:02:00]}  Rc8 {[%clk 0:02:14]} 23. Rxc8+ {[%clk 0:01:57]}  Qxc8 {[%clk 0:02:14]} 24. Bd3 {[%clk 0:01:49]}  Qc1+ {[%clk 0:02:11]} 25. Kg2 {[%clk 0:01:49]}  Nc6 {[%clk 0:02:08]} 26. Qc2 {[%clk 0:01:47]}  Qxc2 {[%clk 0:02:02]} 27. Bxc2 {[%clk 0:01:48]}  Ba6 {[%clk 0:01:59]} 28. Nb3 {[%clk 0:01:38]}  Be2 {[%clk 0:01:56]} 29. Nfd2 {[%clk 0:01:33]}  g5 {[%clk 0:01:55]} 30. hxg5 {[%clk 0:01:33]}  hxg5 {[%clk 0:01:56]} 31. f3 {[%clk 0:01:33]}  Kg7 {[%clk 0:01:51]} 32. Kf2 {[%clk 0:01:33]}  Bc4 {[%clk 0:01:50]} 33. Ke3 {[%clk 0:01:32]}  f6 {[%clk 0:01:45]} 34. exf6+ {[%clk 0:01:14]}  Kxf6 {[%clk 0:01:44]} 35. Bd3 {[%clk 0:01:14]}  Bxd3 {[%clk 0:01:39]} 36. Kxd3 {[%clk 0:01:15]}  Bd6 {[%clk 0:01:39]} 37. g4 {[%clk 0:01:13]}  Bf4 {[%clk 0:01:37]} 38. Nf1 {[%clk 0:01:09]}  e5 {[%clk 0:01:31]} 39. Ne3 {[%clk 0:01:09]}  Bxe3 {[%clk 0:01:21]} 40. Kxe3 {[%clk 0:01:10]}  exd4+ {[%clk 0:01:12]} 41. Kd3 {[%clk 0:00:31]}  Ke5 {[%clk 0:01:11]} 42. Nc5 {[%clk 0:00:23]}  Nd8 {[%clk 0:00:57]} 43. Nb3 {[%clk 0:00:22]}  Ne6 {[%clk 0:00:55]} 44. Nxa5 {[%clk 0:00:22]}  Nc5+ {[%clk 0:00:54]} 45. Kd2 {[%clk 0:00:21]}  Nxa4 {[%clk 0:00:51]} 46. Nc6+ {[%clk 0:00:22]}  Kf4 {[%clk 0:00:48]} 47. Nxd4 {[%clk 0:00:18]}  Nxb2 {[%clk 0:00:44]} 48. Ne6+ {[%clk 0:00:18]}  Kxf3 {[%clk 0:00:42]} 49. Nxg5+ {[%clk 0:00:18]}  Kxg4 {[%clk 0:00:42]} 50. Ne6 {[%clk 0:00:16]}  Kf5 {[%clk 0:00:40]} 51. Nc7 {[%clk 0:00:14]}  Ke4 {[%clk 0:00:38]} 52. Kc2 {[%clk 0:00:14]}  Nc4 {[%clk 0:00:15]} 53. Kb3 {[%clk 0:00:14]}  Ne3 {[%clk 0:00:14]} 54. Kxb4 {[%clk 0:00:13]}  d4 {[%clk 0:00:14]} 55. Ne6 {[%clk 0:00:13]}  Nc2+ {[%clk 0:00:12]} 56. Kc4 {[%clk 0:00:12]}  Na3+ {[%clk 0:00:09]} 57. Kb3 {[%clk 0:00:12]}  d3 {[%clk 0:00:08]} 58. Nc5+ {[%clk 0:00:12]}  Kd4 {[%clk 0:00:08]} 59. Nxd3 {[%clk 0:00:13]} 1/2-1/2

[Event "November 21 Late 2023"]
[Site "https://www.chess.com"]
[Date "2023.11.21"]
[Round "3"]
[White "Zhigalko, Sergei"]
[Black "Feng, Eric"]
[Result "1-0"]
[Board "20"]
[TimeControl "180+1"]
[WhiteFideId "13502956"]
[BlackFideId "30952590"]
[WhiteElo "2616"]
[BlackElo "1785"]
[WhiteTeam "BLR"]
[BlackTeam "USA"]
[WhiteClock "0:02:10"]
[BlackClock "0:01:09"]

1. e4 {[%clk 0:03:00]}  c6 {[%clk 0:02:58]} 2. d4 {[%clk 0:03:01]}  d5 {[%clk 0:02:59]} 3. e5 {[%clk 0:03:01]}  c5 {[%clk 0:02:59]} 4. Nf3 {[%clk 0:03:02]}  Nc6 {[%clk 0:02:59]} 5. dxc5 {[%clk 0:03:01]}  Bg4 {[%clk 0:02:58]} 6. c3 {[%clk 0:03:02]}  e6 {[%clk 0:02:58]} 7. Be3 {[%clk 0:03:02]}  Nge7 {[%clk 0:02:41]} 8. Bb5 {[%clk 0:03:01]}  Nf5 {[%clk 0:02:40]} 9. Bxc6+ {[%clk 0:03:01]}  bxc6 {[%clk 0:02:40]} 10. Qa4 {[%clk 0:03:02]}  Nxe3 {[%clk 0:02:03]} 11. fxe3 {[%clk 0:03:03]}  Bxf3 {[%clk 0:02:04]} 12. Qxc6+ {[%clk 0:03:03]}  Ke7 {[%clk 0:02:04]} 13. Qb7+ {[%clk 0:02:55]}  Ke8 {[%clk 0:02:03]} 14. gxf3 {[%clk 0:02:51]}  Rc8 {[%clk 0:02:01]} 15. b4 {[%clk 0:02:42]}  Qh4+ {[%clk 0:01:54]} 16. Kd1 {[%clk 0:02:26]}  Kd8 {[%clk 0:01:46]} 17. Nd2 {[%clk 0:02:19]}  Be7 {[%clk 0:01:38]} 18. Qxa7 {[%clk 0:02:18]}  Ke8 {[%clk 0:01:34]} 19. Qb7 {[%clk 0:02:14]}  Rd8 {[%clk 0:01:34]} 20. c6 {[%clk 0:02:14]}  d4 {[%clk 0:01:09]} 21. cxd4 {[%clk 0:02:10]} 1-0

[Event "November 21 Late 2023"]
[Site "https://www.chess.com"]
[Date "2023.11.21"]
[Round "3"]
[White "Olsen, Filip Boe"]
[Black "Tactrics"]
[Result "0-1"]
[Board "22"]
[TimeControl "180+1"]
[WhiteFideId "1440640"]
[WhiteElo "2322"]
[BlackElo "2900"]
[WhiteTeam "DEN"]
[WhiteClock "0:00:09"]
[BlackClock "0:00:08"]

1. d4 {[%clk 0:03:00]}  e6 {[%clk 0:02:56]} 2. c4 {[%clk 0:03:00]}  Nf6 {[%clk 0:02:56]} 3. Nc3 {[%clk 0:03:00]}  Bb4 {[%clk 0:02:57]} 4. e3 {[%clk 0:03:01]}  O-O {[%clk 0:02:56]} 5. Bd3 {[%clk 0:03:01]}  c5 {[%clk 0:02:57]} 6. Nf3 {[%clk 0:03:01]}  Bxc3+ {[%clk 0:02:57]} 7. bxc3 {[%clk 0:03:01]}  d6 {[%clk 0:02:57]} 8. O-O {[%clk 0:03:01]}  Nc6 {[%clk 0:02:57]} 9. e4 {[%clk 0:03:00]}  e5 {[%clk 0:02:58]} 10. d5 {[%clk 0:03:01]}  Ne7 {[%clk 0:02:58]} 11. Qe2 {[%clk 0:02:55]}  h6 {[%clk 0:02:57]} 12. g3 {[%clk 0:02:55]}  Bh3 {[%clk 0:02:56]} 13. Rd1 {[%clk 0:02:55]}  Bg4 {[%clk 0:02:49]} 14. Qe3 {[%clk 0:02:50]}  Nh7 {[%clk 0:02:49]} 15. Be2 {[%clk 0:02:46]}  f5 {[%clk 0:02:47]} 16. exf5 {[%clk 0:02:31]}  Nxf5 {[%clk 0:02:48]} 17. Qe4 {[%clk 0:02:32]}  Nf6 {[%clk 0:02:49]} 18. Qc2 {[%clk 0:02:28]}  Qe8 {[%clk 0:02:43]} 19. Ne1 {[%clk 0:02:28]}  Qg6 {[%clk 0:02:19]} 20. Ng2 {[%clk 0:02:23]}  Qh5 {[%clk 0:02:11]} 21. Re1 {[%clk 0:02:09]}  Bxe2 {[%clk 0:02:03]} 22. Qxe2 {[%clk 0:02:09]}  Ng4 {[%clk 0:02:03]} 23. h4 {[%clk 0:02:09]}  Rf7 {[%clk 0:01:46]} 24. Qd1 {[%clk 0:01:27]}  Raf8 {[%clk 0:01:42]} 25. Re4 {[%clk 0:01:27]}  Nf6 {[%clk 0:01:18]} 26. Qxh5 {[%clk 0:01:27]}  Nxh5 {[%clk 0:01:19]} 27. Re2 {[%clk 0:01:19]}  Nf6 {[%clk 0:01:18]} 28. Bd2 {[%clk 0:01:18]}  Ng4 {[%clk 0:01:10]} 29. a4 {[%clk 0:01:14]}  Ne7 {[%clk 0:01:05]} 30. Be1 {[%clk 0:01:11]}  Rf3 {[%clk 0:01:04]} 31. a5 {[%clk 0:01:07]}  R8f7 {[%clk 0:00:58]} 32. Rb1 {[%clk 0:01:07]}  Ng6 {[%clk 0:00:55]} 33. h5 {[%clk 0:01:02]}  Nf8 {[%clk 0:00:54]} 34. Nh4 {[%clk 0:01:01]}  Rd3 {[%clk 0:00:54]} 35. Reb2 {[%clk 0:00:58]}  e4 {[%clk 0:00:44]} 36. Rxb7 {[%clk 0:00:43]}  Rd1 {[%clk 0:00:34]} 37. a6 {[%clk 0:00:33]}  Rxb1 {[%clk 0:00:29]} 38. Rxb1 {[%clk 0:00:32]}  e3 {[%clk 0:00:30]} 39. f4 {[%clk 0:00:26]}  Nd7 {[%clk 0:00:22]} 40. Rb7 {[%clk 0:00:16]}  Nb6 {[%clk 0:00:23]} 41. Ng6 {[%clk 0:00:17]}  Rxb7 {[%clk 0:00:12]} 42. axb7 {[%clk 0:00:17]}  Nd7 {[%clk 0:00:13]} 43. Ne7+ {[%clk 0:00:17]}  Kf7 {[%clk 0:00:13]} 44. Nc6 {[%clk 0:00:18]}  Kf6 {[%clk 0:00:10]} 45. b8=Q {[%clk 0:00:17]}  Nxb8 {[%clk 0:00:10]} 46. Nxb8 {[%clk 0:00:18]}  a5 {[%clk 0:00:10]} 47. Nd7+ {[%clk 0:00:17]}  Kf5 {[%clk 0:00:11]} 48. Nb6 {[%clk 0:00:18]}  Ke4 {[%clk 0:00:11]} 49. Kf1 {[%clk 0:00:18]}  Kf3 {[%clk 0:00:11]} 50. f5 {[%clk 0:00:14]}  Nf6 {[%clk 0:00:11]} 51. g4 {[%clk 0:00:12]}  Nxg4 {[%clk 0:00:10]} 52. Bh4 {[%clk 0:00:12]}  e2+ {[%clk 0:00:10]} 53. Ke1 {[%clk 0:00:12]}  Ne3 {[%clk 0:00:10]} 54. Kd2 {[%clk 0:00:12]}  Nxf5 {[%clk 0:00:09]} 55. Be1 {[%clk 0:00:12]}  Ne3 {[%clk 0:00:08]} 56. Na4 {[%clk 0:00:13]}  Ng2 {[%clk 0:00:08]} 57. Nxc5 {[%clk 0:00:12]}  dxc5 {[%clk 0:00:03]} 58. d6 {[%clk 0:00:12]}  Nf4 {[%clk 0:00:04]} 59. d7 {[%clk 0:00:12]}  Ne6 {[%clk 0:00:04]} 60. Bh4 {[%clk 0:00:13]}  a4 {[%clk 0:00:05]} 61. d8=Q {[%clk 0:00:13]}  Nxd8 {[%clk 0:00:05]} 62. Bxd8 {[%clk 0:00:13]}  a3 {[%clk 0:00:06]} 63. Kc2 {[%clk 0:00:02]}  e1=Q {[%clk 0:00:06]} 64. Bh4 {[%clk 0:00:03]}  Qxh4 {[%clk 0:00:06]} 65. Kb3 {[%clk 0:00:03]}  a2 {[%clk 0:00:06]} 66. Kxa2 {[%clk 0:00:04]}  Qxc4+ {[%clk 0:00:06]} 67. Kb2 {[%clk 0:00:04]}  Qd3 {[%clk 0:00:06]} 68. Kb3 {[%clk 0:00:04]}  Ke4 {[%clk 0:00:07]} 69. Kb2 {[%clk 0:00:04]}  Kd5 {[%clk 0:00:07]} 70. Kb3 {[%clk 0:00:05]}  c4+ {[%clk 0:00:07]} 71. Kb2 {[%clk 0:00:06]}  Qd2+ {[%clk 0:00:07]} 72. Ka3 {[%clk 0:00:06]}  Qxc3+ {[%clk 0:00:07]} 73. Ka4 {[%clk 0:00:07]}  Qb3+ {[%clk 0:00:08]} 74. Ka5 {[%clk 0:00:08]}  Kc6 {[%clk 0:00:08]} 75. Ka6 {[%clk 0:00:09]}  Qb6# {[%clk 0:00:08]} 0-1